fUST/lending_fUST_20260512
["ID","MTS","AMOUNT","RATE_DAILY","PERIOD"]
[422095785,1778572249000,-747.449399,0.0001274,2]
[422095789,1778572249000,-1006.73,0.000128,2]
[422095792,1778572249000,-1541.823567,0.00012804,2]
[422095805,1778572249000,-500.0,0.00012876,2]
[422095787,1778572249000,-1267.24288561,0.00012789,3]
[422095790,1778572249000,-10106.77776322,0.000128,2]
[422095794,1778572249000,-160.0,0.00012804,2]
[422095793,1778572249000,-2923.647135,0.00012804,2]
[422095798,1778572249000,-500.81899968,0.0001285,2]
[422095797,1778572249000,-152.0,0.00012838,7]
[422095795,1778572249000,-1214.398841,0.00012804,2]
[422095786,1778572249000,-2016.72350062,0.0001274,2]
[422095796,1778572249000,-2268.797683,0.00012804,2]
[422095800,1778572249000,-984.4968,0.00012876,2]
[422095812,1778572249000,-533.34704256,0.00012876,2]
[422095811,1778572249000,-1130.54,0.00012876,2]
[422095810,1778572249000,-758.57,0.00012876,2]
[422095799,1778572249000,-157.27100825,0.0001287,10]
[422095791,1778572249000,-160.0,0.00012804,2]
[422095844,1778572249000,-152.0,0.0001289,7]
[422095898,1778572249000,-758.57,0.0001315,2]
[422095835,1778572249000,-152.0,0.00012886,7]
[422095871,1778572249000,-21224.95529229,0.00013,2]
[422095873,1778572249000,-152.0,0.00013,30]
[422095878,1778572249000,-1510.515,0.00013,2]
[422095877,1778572249000,-256.12022718,0.00013,2]
[422095872,1778572249000,-4200.20198203,0.00013,2]
[422095876,1778572249000,-408.27,0.00013,2]
[422095874,1778572249000,-152.0,0.00013,30]
[422095875,1778572249000,-10106.77776322,0.00013,2]
[422095879,1778572249000,-1507.766,0.00013,2]
[422095882,1778572249000,-498.88319384,0.00013031,30]
[422095883,1778572249000,-498.88319384,0.0001306,30]
[422095880,1778572249000,-498.88319384,0.00013003,30]
[422095881,1778572249000,-152.0,0.00013024,30]
[422095865,1778572249000,-152.0,0.00012985,2]
[422095884,1778572249000,-498.88319384,0.00013088,30]
[422095897,1778572249000,-500.0,0.0001315,2]
[422095896,1778572249000,-500.0,0.0001315,2]
[422095887,1778572249000,-498.88319384,0.00013116,30]
[422095893,1778572249000,-500.0,0.0001315,2]
[422095891,1778572249000,-554.49,0.0001315,2]
[422095889,1778572249000,-984.4968,0.0001315,2]
[422095886,1778572249000,-10106.77776322,0.000131,2]
[422095888,1778572249000,-498.88319384,0.00013144,30]
[422095892,1778572249000,-500.0,0.0001315,2]
[422095890,1778572249000,-500.0,0.0001315,2]
[422095894,1778572249000,-500.0,0.0001315,2]
[422095899,1778572249000,-1130.54,0.0001315,2]
[422095837,1778572249000,-152.0,0.00012886,7]
[422095885,1778572249000,-258.68,0.000131,2]
[422095864,1778572249000,-152.0,0.00012982,2]
[422095895,1778572249000,-658.07,0.0001315,2]
[422095866,1778572249000,-152.0,0.00012991,7]
[422095845,1778572249000,-152.0,0.0001289,7]
[422095862,1778572249000,-152.0,0.00012978,2]
[422095836,1778572249000,-152.0,0.00012886,7]
[422095838,1778572249000,-152.0,0.00012886,7]
[422095839,1778572249000,-152.0,0.00012886,7]
[422095840,1778572249000,-152.0,0.00012886,7]
[422095841,1778572249000,-152.0,0.00012886,7]
[422095842,1778572249000,-152.0,0.0001289,7]
[422095848,1778572249000,-152.0,0.00012894,7]
[422095850,1778572249000,-152.0,0.00012894,7]
[422095847,1778572249000,-152.0,0.0001289,7]
[422095849,1778572249000,-152.0,0.00012894,7]
[422095853,1778572249000,-1240.9923726,0.000129,2]
[422095855,1778572249000,-198.0,0.0001291,2]
[422095846,1778572249000,-152.0,0.0001289,7]
[422095863,1778572249000,-152.0,0.00012982,2]
[422095869,1778572249000,-1261.278461,0.00013,2]
[422095852,1778572249000,-1240.9923726,0.000129,2]
[422095861,1778572249000,-152.0,0.00012978,2]
[422095868,1778572249000,-2909.01685399,0.00013,2]
[422095860,1778572249000,-152.0,0.00012978,2]
[422095867,1778572249000,-152.0,0.00012991,7]
[422095859,1778572249000,-152.0,0.00012975,30]
[422095857,1778572249000,-152.0,0.00012975,30]
[422095856,1778572249000,-1267.0,0.00012917,5]
[422095854,1778572249000,-5108.8615852,0.000129,2]
[422095851,1778572249000,-1240.99237265,0.000129,2]
[422095858,1778572249000,-152.0,0.00012975,30]
[422095870,1778572249000,-100571.63076802,0.00013,2]
[422095940,1778572250000,-538.724522,0.00013377,2]
[422095945,1778572250000,-10106.77776322,0.000134,2]
[422095942,1778572250000,-417.764177,0.00013377,2]
[422095947,1778572250000,-984.4968,0.00013424,2]
[422095948,1778572250000,-500.0,0.00013424,2]
[422095950,1778572250000,-500.0,0.00013424,2]
[422095930,1778572250000,-997.66638767,0.00013229,30]
[422095949,1778572250000,-554.49,0.00013424,2]
[422095938,1778572250000,-364.31222456,0.00013365,14]
[422095939,1778572250000,-260.0,0.0001337,3]
[422095931,1778572250000,-441.66773244,0.00013233,14]
[422095935,1778572250000,-185.38311815,0.00013365,14]
[422095941,1778572250000,-567.475303,0.00013377,2]
[422095946,1778572250000,-1453.69237215,0.00013405,14]
[422095943,1778572250000,-618.715499,0.00013377,2]
[422095964,1778572250000,-1103.22,0.00013424,2]
[422095951,1778572250000,-500.0,0.00013424,2]
[422095954,1778572250000,-500.0,0.00013424,2]
[422095955,1778572250000,-500.0,0.00013424,2]
[422095953,1778572250000,-658.07,0.00013424,2]
[422095956,1778572250000,-758.57,0.00013424,2]
[422095958,1778572250000,-786.85,0.00013424,2]
[422095960,1778572250000,-5150.82,0.00013424,2]
[422095952,1778572250000,-476.58629156,0.00013424,2]
[422095962,1778572250000,-1039.42,0.00013424,2]
[422095957,1778572250000,-1130.54,0.00013424,2]
[422095966,1778572250000,-626.1,0.00013424,2]
[422095959,1778572250000,-746.02,0.00013424,2]
[422095961,1778572250000,-355.79812976,0.00013424,2]
[422095936,1778572250000,-187.15026188,0.00013365,14]
[422095944,1778572250000,-3595.2373971,0.000134,2]
[422095932,1778572250000,-159.14362621,0.00013233,14]
[422095909,1778572250000,-776.51,0.0001315,2]
[422095933,1778572250000,-2766.8787,0.00013249,2]
[422095902,1778572250000,-5150.82,0.0001315,2]
[422095900,1778572250000,-786.85,0.0001315,2]
[422095905,1778572250000,-567.08,0.0001315,2]
[422095906,1778572250000,-1103.22,0.0001315,2]
[422095904,1778572250000,-1039.42,0.0001315,2]
[422095907,1778572250000,-500.0,0.0001315,2]
[422095910,1778572250000,-504.59,0.0001315,2]
[422095903,1778572250000,-500.0,0.0001315,2]
[422095908,1778572250000,-626.1,0.0001315,2]
[422095901,1778572250000,-746.02,0.0001315,2]
[422095912,1778572250000,-552.7,0.0001315,2]
[422095919,1778572250000,-500.0,0.0001315,2]
[422095922,1778572250000,-200.4,0.00013151,2]
[422095923,1778572250000,-200.4,0.00013151,2]
[422095934,1778572250000,-325.7699083,0.00013296,2]
[422095913,1778572250000,-519.97,0.0001315,2]
[422095914,1778572250000,-500.0,0.0001315,2]
[422095911,1778572250000,-500.0,0.0001315,2]
[422095915,1778572250000,-667.08,0.0001315,2]
[422095916,1778572250000,-500.0,0.0001315,2]
[422095921,1778572250000,-200.4,0.00013151,2]
[422095917,1778572250000,-509.43,0.0001315,2]
[422095920,1778572250000,-699.25,0.0001315,2]
[422095918,1778572250000,-1157.27,0.0001315,2]
[422095927,1778572250000,-498.88319384,0.00013201,30]
[422095925,1778572250000,-498.88319384,0.00013173,30]
[422095928,1778572250000,-1240.9923726,0.00013207,2]
[422095926,1778572250000,-10106.77776322,0.000132,2]
[422095929,1778572250000,-5000.0,0.0001322,2]
[422095937,1778572250000,-235.2824197,0.00013365,14]
[422095924,1778572250000,-200.64420173,0.00013151,2]
[422095976,1778572250000,-1157.27,0.00013424,2]
[422095963,1778572250000,-567.08,0.00013424,2]
[422095965,1778572250000,-500.0,0.00013424,2]
[422096001,1778572250000,-1253.65591832,0.00013628,14]
[422096002,1778572250000,-160.0,0.00013637,5]
[422096007,1778572250000,-1453.69237215,0.00013672,30]
[422096006,1778572250000,-176.11215854,0.00013672,30]
[422096017,1778572250000,-643.52976319,0.00013698,2]
[422096018,1778572250000,-2654.28,0.00013698,2]
[422096013,1778572250000,-704.51109279,0.0001369,7]
[422096014,1778572250000,-8000.0,0.0001369,120]
[422096019,1778572250000,-2654.28,0.00013698,2]
[422096016,1778572250000,-500.0,0.00013698,2]
[422096008,1778572250000,-1094.39153342,0.00013684,30]
[422096009,1778572250000,-2918.85948053,0.00013684,30]
[422096011,1778572250000,-76249.38944404,0.0001369,7]
[422096010,1778572250000,-338119.97854456,0.0001369,7]
[422095999,1778572250000,-1094.39153342,0.00013617,14]
[422096012,1778572250000,-234.83703093,0.0001369,7]
[422096029,1778572250000,-2654.28,0.00013698,2]
[422096030,1778572250000,-2654.28,0.00013698,2]
[422096032,1778572250000,-2654.28,0.00013698,2]
[422096020,1778572250000,-2654.28,0.00013698,2]
[422096022,1778572250000,-2654.28,0.00013698,2]
[422096021,1778572250000,-2654.28,0.00013698,2]
[422096023,1778572250000,-2654.28,0.00013698,2]
[422096027,1778572250000,-2654.28,0.00013698,2]
[422096025,1778572250000,-2654.28,0.00013698,2]
[422096028,1778572250000,-2654.28,0.00013698,2]
[422096026,1778572250000,-2654.28,0.00013698,2]
[422096024,1778572250000,-2654.28,0.00013698,2]
[422096033,1778572250000,-2654.28,0.00013698,2]
[422095977,1778572250000,-500.0,0.00013424,2]
[422096031,1778572250000,-2654.28,0.00013698,2]
[422095998,1778572250000,-1453.69237215,0.00013605,14]
[422096015,1778572250000,-500.0,0.00013698,2]
[422096000,1778572250000,-2918.85948053,0.00013617,14]
[422095982,1778572250000,-1453.69237215,0.00013472,14]
[422095980,1778572250000,-2102.486683,0.00013444,2]
[422095979,1778572250000,-1318.635753,0.00013444,2]
[422095981,1778572250000,-1655.99842,0.00013444,2]
[422095973,1778572250000,-667.08,0.00013424,2]
[422095972,1778572250000,-500.0,0.00013424,2]
[422095983,1778572250000,-524.64222715,0.00013481,2]
[422095974,1778572250000,-500.0,0.00013424,2]
[422095975,1778572250000,-509.43,0.00013424,2]
[422095968,1778572250000,-504.59,0.00013424,2]
[422095969,1778572250000,-500.0,0.00013424,2]
[422095970,1778572250000,-552.7,0.00013424,2]
[422095995,1778572250000,-647.07214214,0.00013592,2]
[422095967,1778572250000,-776.51,0.00013424,2]
[422095971,1778572250000,-519.97,0.00013424,2]
[422095990,1778572250000,-647.07214214,0.00013503,2]
[422095978,1778572250000,-699.25,0.00013424,2]
[422095994,1778572250000,-5159.44013792,0.00013582,2]
[422095988,1778572250000,-458.31,0.000135,14]
[422095992,1778572250000,-1094.39153342,0.00013549,14]
[422095996,1778572250000,-2951.72529624,0.00013598,2]
[422096004,1778572250000,-524.64222715,0.00013661,2]
[422095997,1778572250000,-10106.77776322,0.000136,2]
[422096005,1778572250000,-524.64222715,0.00013662,2]
[422095993,1778572250000,-2918.85948053,0.00013549,14]
[422096003,1778572250000,-201.71416594,0.00013653,14]
[422095984,1778572250000,-2918.85948053,0.00013482,14]
[422095991,1778572250000,-1453.69237215,0.00013538,14]
[422095986,1778572250000,-524.64222715,0.00013494,2]
[422095989,1778572250000,-10106.77776322,0.000135,2]
[422095985,1778572250000,-240.48646566,0.00013487,14]
[422095987,1778572250000,-194033.21957966,0.00013499,2]
[422096079,1778572251000,-725.56,0.00013698,2]
[422096075,1778572251000,-725.56,0.00013698,2]
[422096085,1778572251000,-725.56,0.00013698,2]
[422096083,1778572251000,-725.56,0.00013698,2]
[422096084,1778572251000,-725.56,0.00013698,2]
[422096080,1778572251000,-725.56,0.00013698,2]
[422096071,1778572251000,-725.56,0.00013698,2]
[422096081,1778572251000,-725.56,0.00013698,2]
[422096074,1778572251000,-725.56,0.00013698,2]
[422096072,1778572251000,-725.56,0.00013698,2]
[422096070,1778572251000,-725.56,0.00013698,2]
[422096068,1778572251000,-1307.29,0.00013698,2]
[422096076,1778572251000,-725.56,0.00013698,2]
[422096082,1778572251000,-725.56,0.00013698,2]
[422096078,1778572251000,-725.56,0.00013698,2]
[422096097,1778572251000,-500.0,0.00013698,2]
[422096077,1778572251000,-725.56,0.00013698,2]
[422096086,1778572251000,-725.56,0.00013698,2]
[422096089,1778572251000,-725.56,0.00013698,2]
[422096088,1778572251000,-725.56,0.00013698,2]
[422096093,1778572251000,-725.5866184,0.00013698,2]
[422096095,1778572251000,-500.0,0.00013698,2]
[422096096,1778572251000,-500.0,0.00013698,2]
[422096087,1778572251000,-725.56,0.00013698,2]
[422096090,1778572251000,-725.56,0.00013698,2]
[422096099,1778572251000,-500.0,0.00013698,2]
[422096098,1778572251000,-500.0,0.00013698,2]
[422096094,1778572251000,-500.0,0.00013698,2]
[422096091,1778572251000,-725.56,0.00013698,2]
[422096066,1778572251000,-1307.29,0.00013698,2]
[422096073,1778572251000,-725.56,0.00013698,2]
[422096069,1778572251000,-1307.35004297,0.00013698,2]
[422096038,1778572251000,-2654.28,0.00013698,2]
[422096067,1778572251000,-1307.29,0.00013698,2]
[422096092,1778572251000,-725.56,0.00013698,2]
[422096037,1778572251000,-2654.28,0.00013698,2]
[422096034,1778572251000,-2654.28,0.00013698,2]
[422096035,1778572251000,-2654.28,0.00013698,2]
[422096036,1778572251000,-2654.28,0.00013698,2]
[422096046,1778572251000,-1307.29,0.00013698,2]
[422096041,1778572251000,-2654.44098389,0.00013698,2]
[422096044,1778572251000,-500.0,0.00013698,2]
[422096042,1778572251000,-500.0,0.00013698,2]
[422096039,1778572251000,-2654.28,0.00013698,2]
[422096045,1778572251000,-534.77041033,0.00013698,2]
[422096043,1778572251000,-500.0,0.00013698,2]
[422096048,1778572251000,-1307.29,0.00013698,2]
[422096058,1778572251000,-1307.29,0.00013698,2]
[422096064,1778572251000,-1307.29,0.00013698,2]
[422096047,1778572251000,-1307.29,0.00013698,2]
[422096051,1778572251000,-1307.29,0.00013698,2]
[422096052,1778572251000,-1307.29,0.00013698,2]
[422096050,1778572251000,-1307.29,0.00013698,2]
[422096056,1778572251000,-1307.29,0.00013698,2]
[422096054,1778572251000,-1307.29,0.00013698,2]
[422096057,1778572251000,-1307.29,0.00013698,2]
[422096055,1778572251000,-1307.29,0.00013698,2]
[422096053,1778572251000,-1307.29,0.00013698,2]
[422096061,1778572251000,-1307.29,0.00013698,2]
[422096059,1778572251000,-1307.29,0.00013698,2]
[422096063,1778572251000,-1307.29,0.00013698,2]
[422096062,1778572251000,-1307.29,0.00013698,2]
[422096065,1778572251000,-1307.29,0.00013698,2]
[422096060,1778572251000,-1307.29,0.00013698,2]
[422096049,1778572251000,-1307.29,0.00013698,2]
[422096101,1778572251000,-500.0,0.00013698,2]
[422096040,1778572251000,-2654.28,0.00013698,2]
[422096113,1778572251000,-500.0,0.00013698,2]
[422096138,1778572251000,-554.49,0.00013698,2]
[422096135,1778572251000,-500.0,0.00013698,2]
[422096137,1778572251000,-585.19645775,0.00013698,2]
[422096136,1778572251000,-500.0,0.00013698,2]
[422096142,1778572251000,-500.0,0.00013698,2]
[422096143,1778572251000,-500.0,0.00013698,2]
[422096144,1778572251000,-500.0,0.00013698,2]
[422096148,1778572251000,-500.0,0.00013698,2]
[422096146,1778572251000,-500.0,0.00013698,2]
[422096147,1778572251000,-500.0,0.00013698,2]
[422096153,1778572251000,-500.0,0.00013698,2]
[422096150,1778572251000,-500.0,0.00013698,2]
[422096154,1778572251000,-500.0,0.00013698,2]
[422096145,1778572251000,-500.0,0.00013698,2]
[422096151,1778572251000,-500.0,0.00013698,2]
[422096149,1778572251000,-500.0,0.00013698,2]
[422096152,1778572251000,-500.0,0.00013698,2]
[422096164,1778572251000,-986.9,0.00013698,2]
[422096158,1778572251000,-500.0,0.00013698,2]
[422096108,1778572251000,-500.0,0.00013698,2]
[422096165,1778572251000,-986.9,0.00013698,2]
[422096157,1778572251000,-500.0,0.00013698,2]
[422096159,1778572251000,-605.81908928,0.00013698,2]
[422096132,1778572251000,-500.0,0.00013698,2]
[422096161,1778572251000,-986.9,0.00013698,2]
[422096162,1778572251000,-986.9,0.00013698,2]
[422096160,1778572251000,-986.9,0.00013698,2]
[422096155,1778572251000,-500.0,0.00013698,2]
[422096167,1778572251000,-986.9,0.00013698,2]
[422096166,1778572251000,-986.9,0.00013698,2]
[422096156,1778572251000,-500.0,0.00013698,2]
[422096163,1778572251000,-986.9,0.00013698,2]
[422096134,1778572251000,-500.0,0.00013698,2]
[422096168,1778572251000,-986.9,0.00013698,2]
[422096128,1778572251000,-500.0,0.00013698,2]
[422096133,1778572251000,-500.0,0.00013698,2]
[422096111,1778572251000,-500.0,0.00013698,2]
[422096102,1778572251000,-500.0,0.00013698,2]
[422096100,1778572251000,-500.0,0.00013698,2]
[422096109,1778572251000,-500.0,0.00013698,2]
[422096110,1778572251000,-500.0,0.00013698,2]
[422096106,1778572251000,-500.0,0.00013698,2]
[422096103,1778572251000,-500.0,0.00013698,2]
[422096104,1778572251000,-500.0,0.00013698,2]
[422096107,1778572251000,-500.0,0.00013698,2]
[422096105,1778572251000,-500.0,0.00013698,2]
[422096114,1778572251000,-500.0,0.00013698,2]
[422096117,1778572251000,-500.0,0.00013698,2]
[422096116,1778572251000,-282.43616306,0.00013698,2]
[422096118,1778572251000,-500.0,0.00013698,2]
[422096112,1778572251000,-500.0,0.00013698,2]
[422096123,1778572251000,-293.13738767,0.00013698,2]
[422096120,1778572251000,-500.0,0.00013698,2]
[422096131,1778572251000,-500.0,0.00013698,2]
[422096141,1778572251000,-500.0,0.00013698,2]
[422096139,1778572251000,-500.0,0.00013698,2]
[422096140,1778572251000,-500.0,0.00013698,2]
[422096129,1778572251000,-500.0,0.00013698,2]
[422096121,1778572251000,-500.0,0.00013698,2]
[422096130,1778572251000,-500.0,0.00013698,2]
[422096125,1778572251000,-500.0,0.00013698,2]
[422096122,1778572251000,-500.0,0.00013698,2]
[422096124,1778572251000,-500.0,0.00013698,2]
[422096127,1778572251000,-500.0,0.00013698,2]
[422096119,1778572251000,-500.0,0.00013698,2]
[422096126,1778572251000,-500.0,0.00013698,2]
[422096115,1778572251000,-500.0,0.00013698,2]
[422096213,1778572252000,-1253.57,0.00013698,2]
[422096210,1778572252000,-1049.58,0.00013698,2]
[422096208,1778572252000,-1049.58,0.00013698,2]
[422096207,1778572252000,-1253.57,0.00013698,2]
[422096212,1778572252000,-1049.58,0.00013698,2]
[422096216,1778572252000,-1049.58,0.00013698,2]
[422096215,1778572252000,-1049.58,0.00013698,2]
[422096205,1778572252000,-1253.57,0.00013698,2]
[422096204,1778572252000,-1049.58,0.00013698,2]
[422096200,1778572252000,-1253.57,0.00013698,2]
[422096209,1778572252000,-1253.57,0.00013698,2]
[422096206,1778572252000,-1049.58,0.00013698,2]
[422096198,1778572252000,-1253.57,0.00013698,2]
[422096224,1778572252000,-1049.58,0.00013698,2]
[422096211,1778572252000,-1253.57,0.00013698,2]
[422096218,1778572252000,-1049.58,0.00013698,2]
[422096228,1778572252000,-1049.58,0.00013698,2]
[422096229,1778572252000,-1049.58,0.00013698,2]
[422096219,1778572252000,-1253.73355819,0.00013698,2]
[422096217,1778572252000,-1253.57,0.00013698,2]
[422096222,1778572252000,-1049.58,0.00013698,2]
[422096221,1778572252000,-1049.58,0.00013698,2]
[422096226,1778572252000,-1049.58,0.00013698,2]
[422096225,1778572252000,-1049.58,0.00013698,2]
[422096223,1778572252000,-1049.58,0.00013698,2]
[422096220,1778572252000,-500.0,0.00013698,2]
[422096227,1778572252000,-1049.58,0.00013698,2]
[422096199,1778572252000,-1253.57,0.00013698,2]
[422096214,1778572252000,-1253.57,0.00013698,2]
[422096197,1778572252000,-1253.57,0.00013698,2]
[422096185,1778572252000,-576.58123551,0.00013698,2]
[422096201,1778572252000,-1253.57,0.00013698,2]
[422096169,1778572252000,-986.9,0.00013698,2]
[422096170,1778572252000,-986.9,0.00013698,2]
[422096171,1778572252000,-986.9,0.00013698,2]
[422096173,1778572252000,-986.9,0.00013698,2]
[422096175,1778572252000,-986.9,0.00013698,2]
[422096172,1778572252000,-986.9,0.00013698,2]
[422096174,1778572252000,-986.9,0.00013698,2]
[422096176,1778572252000,-986.9,0.00013698,2]
[422096188,1778572252000,-1253.57,0.00013698,2]
[422096177,1778572252000,-986.9,0.00013698,2]
[422096189,1778572252000,-1253.57,0.00013698,2]
[422096178,1778572252000,-986.9,0.00013698,2]
[422096179,1778572252000,-986.9,0.00013698,2]
[422096195,1778572252000,-1253.57,0.00013698,2]
[422096183,1778572252000,-986.99745574,0.00013698,2]
[422096181,1778572252000,-986.9,0.00013698,2]
[422096180,1778572252000,-986.9,0.00013698,2]
[422096186,1778572252000,-1253.57,0.00013698,2]
[422096184,1778572252000,-500.0,0.00013698,2]
[422096187,1778572252000,-1253.57,0.00013698,2]
[422096191,1778572252000,-1253.57,0.00013698,2]
[422096190,1778572252000,-1253.57,0.00013698,2]
[422096196,1778572252000,-658.07,0.00013698,2]
[422096202,1778572252000,-1049.58,0.00013698,2]
[422096194,1778572252000,-1253.57,0.00013698,2]
[422096203,1778572252000,-1253.57,0.00013698,2]
[422096192,1778572252000,-1253.57,0.00013698,2]
[422096193,1778572252000,-1253.57,0.00013698,2]
[422096182,1778572252000,-986.9,0.00013698,2]
[422096230,1778572252000,-1049.58,0.00013698,2]
[422096236,1778572252000,-664.3,0.00013698,2]
[422096234,1778572252000,-1049.58,0.00013698,2]
[422096267,1778572252000,-1000.0,0.00013698,2]
[422096261,1778572252000,-758.57,0.00013698,2]
[422096270,1778572252000,-1000.0,0.00013698,2]
[422096264,1778572252000,-1000.0,0.00013698,2]
[422096272,1778572252000,-1000.0,0.00013698,2]
[422096282,1778572252000,-500.0,0.00013698,2]
[422096274,1778572252000,-786.85,0.00013698,2]
[422096283,1778572252000,-500.0,0.00013698,2]
[422096279,1778572252000,-500.0,0.00013698,2]
[422096281,1778572252000,-500.0,0.00013698,2]
[422096275,1778572252000,-500.0,0.00013698,2]
[422096273,1778572252000,-1000.0,0.00013698,2]
[422096276,1778572252000,-563.99523102,0.00013698,2]
[422096262,1778572252000,-1130.54,0.00013698,2]
[422096271,1778572252000,-1000.0,0.00013698,2]
[422096280,1778572252000,-500.0,0.00013698,2]
[422096284,1778572252000,-263.54,0.00013698,2]
[422096286,1778572252000,-500.0,0.00013698,2]
[422096285,1778572252000,-500.0,0.00013698,2]
[422096290,1778572252000,-227.75306294,0.00013698,2]
[422096291,1778572252000,-1935.68,0.00013698,2]
[422096289,1778572252000,-500.0,0.00013698,2]
[422096288,1778572252000,-500.0,0.00013698,2]
[422096287,1778572252000,-500.0,0.00013698,2]
[422096292,1778572252000,-1935.68,0.00013698,2]
[422096293,1778572252000,-1935.68,0.00013698,2]
[422096294,1778572252000,-1935.68,0.00013698,2]
[422096235,1778572252000,-1049.61626746,0.00013698,2]
[422096278,1778572252000,-500.0,0.00013698,2]
[422096265,1778572252000,-1000.0,0.00013698,2]
[422096277,1778572252000,-500.0,0.00013698,2]
[422096266,1778572252000,-1000.0,0.00013698,2]
[422096268,1778572252000,-1000.0,0.00013698,2]
[422096242,1778572252000,-664.3,0.00013698,2]
[422096241,1778572252000,-664.3,0.00013698,2]
[422096231,1778572252000,-1049.58,0.00013698,2]
[422096240,1778572252000,-664.3,0.00013698,2]
[422096233,1778572252000,-1049.58,0.00013698,2]
[422096239,1778572252000,-664.3,0.00013698,2]
[422096243,1778572252000,-664.3,0.00013698,2]
[422096238,1778572252000,-664.3,0.00013698,2]
[422096237,1778572252000,-664.3,0.00013698,2]
[422096245,1778572252000,-664.3,0.00013698,2]
[422096247,1778572252000,-664.3,0.00013698,2]
[422096255,1778572252000,-664.3,0.00013698,2]
[422096246,1778572252000,-664.3,0.00013698,2]
[422096257,1778572252000,-664.3,0.00013698,2]
[422096232,1778572252000,-1049.58,0.00013698,2]
[422096269,1778572252000,-1000.0,0.00013698,2]
[422096263,1778572252000,-1000.0,0.00013698,2]
[422096260,1778572252000,-500.0,0.00013698,2]
[422096259,1778572252000,-664.50783022,0.00013698,2]
[422096256,1778572252000,-664.3,0.00013698,2]
[422096250,1778572252000,-664.3,0.00013698,2]
[422096254,1778572252000,-664.3,0.00013698,2]
[422096258,1778572252000,-664.3,0.00013698,2]
[422096248,1778572252000,-664.3,0.00013698,2]
[422096253,1778572252000,-664.3,0.00013698,2]
[422096252,1778572252000,-664.3,0.00013698,2]
[422096249,1778572252000,-664.3,0.00013698,2]
[422096244,1778572252000,-664.3,0.00013698,2]
[422096251,1778572252000,-664.3,0.00013698,2]
[422096340,1778572253000,-595.04155417,0.00013698,2]
[422096338,1778572253000,-500.0,0.00013698,2]
[422096334,1778572253000,-500.0,0.00013698,2]
[422096330,1778572253000,-500.0,0.00013698,2]
[422096331,1778572253000,-500.0,0.00013698,2]
[422096325,1778572253000,-500.0,0.00013698,2]
[422096333,1778572253000,-500.0,0.00013698,2]
[422096329,1778572253000,-500.0,0.00013698,2]
[422096332,1778572253000,-500.0,0.00013698,2]
[422096328,1778572253000,-500.0,0.00013698,2]
[422096327,1778572253000,-500.0,0.00013698,2]
[422096343,1778572253000,-776.51,0.00013698,2]
[422096335,1778572253000,-500.0,0.00013698,2]
[422096341,1778572253000,-500.0,0.00013698,2]
[422096351,1778572253000,-1149.59,0.00013698,2]
[422096348,1778572253000,-519.97,0.00013698,2]
[422096350,1778572253000,-1149.59,0.00013698,2]
[422096346,1778572253000,-500.0,0.00013698,2]
[422096349,1778572253000,-1149.59,0.00013698,2]
[422096345,1778572253000,-504.07526538,0.00013698,2]
[422096342,1778572253000,-626.1,0.00013698,2]
[422096347,1778572253000,-552.7,0.00013698,2]